Cogmind - Beta 13 @@@ ROGUE MODE // 2024.07.13 @ 12:48:17 Player: Gabriel Result: Destroyed by G-47 Trooper with Particle Gun Performance ------------- Evolutions (3) 1500 Regions Visited (5) 1000 Robots Destroyed (48) 240 Value Destroyed (1132) 1132 Prototype IDs (2) 40 Alien Tech Used (0) 0 Bonus (0) 0 TOTAL SCORE: 3912 Bonus ------- None Cogmind --------- Core Integrity 0/700 Matter 245/300 Energy 45/350 System Corruption 0% Temperature Cool (46) Movement Walking (260) Ox2 Location -7/Factory Parts ------- > --- POWER (1) -------- (None) > --- PROPULSION (5) --- Aluminum Leg > --- UTILITY (4) ------ Large Storage Unit High-capacity Battery > --- WEAPON (3) ------- (None) > --- INVENTORY (15) --- Improved Heat Sink Medium Storage Unit Beam Rifle Pulse Rifle Advanced Beam Cannon Heavy Assault Rifle Peak State ------------ > --- POWER ------------ Deuterium Engine > --- PROPULSION ------- Aluminum Leg Aluminum Leg Aluminum Leg Improved Aluminum Leg Improved Aluminum Leg > --- UTILITY ---------- Heat Sink Improved Heat Sink Large Storage Unit High-capacity Battery > --- WEAPON ----------- Advanced Beam Rifle Advanced Beam Rifle Advanced Beam Rifle > --- INVENTORY -------- Aluminum Leg Aluminum Leg Aluminum Leg Improved Heat Sink Medium Storage Unit Beam Rifle Pulse Rifle Pulse Rifle Advanced Beam Cannon Ion Cannon Heavy Assault Rifle EMP Blaster Mini Grenade Launcher [Rating: 30] Favorites ----------- Power Reinforced Ion Engine Engine Reinforced Ion Engine Propulsion Improved Aluminum Leg Leg Improved Aluminum Leg Utility High-capacity Battery Device Heat Sink Storage High-capacity Battery Weapon Advanced Beam Rifle Energy Gun Advanced Beam Rifle Energy Cannon Advanced Beam Cannon Ballistic Gun Heavy Assault Rifle Launcher EMP Blaster Build | -11 -10 -10 -9 -8 -7 ------- Run | Yrd Mat Min Mat Mat Fac Slots Evolved 6 | . . . 2 2 2 Power . | . . . . . . Propulsion 3 | . . . 2 . 1 Utility 2 | . . . . 1 1 Weapon 1 | . . . . 1 . Parts Attached 38 | 6 2 3 8 10 9 Power 5 | 1 . 1 1 2 . Engine 5 | 1 . 1 1 2 . Core . | . . . . . . Reactor . | . . . . . . Propulsion 13 | 2 . 1 4 2 4 Treads . | . . . . . . Leg 13 | 2 . 1 4 2 4 Wheel . | . . . . . . Hover . | . . . . . . Flight . | . . . . . . Utility 7 | 1 2 . 1 2 1 Device 3 | . . . . 2 1 Storage 4 | 1 2 . 1 . . Processor . | . . . . . . Hackware . | . . . . . . Protection . | . . . . . . Artifact . | . . . . . . Weapon 13 | 2 . 1 2 4 4 Energy Gun 6 | . . 1 . 4 1 Energy Cannon 2 | . . . 1 . 1 Ballistic Gun 3 | 2 . . 1 . . Ballistic Cannon . | . . . . . . Launcher 2 | . . . . . 2 Special Weapon . | . . . . . . Impact Weapon . | . . . . . . Slashing Weapon . | . . . . . . Piercing Weapon . | . . . . . . Special Melee Weapon . | . . . . . . Unidentified Prototypes 2 | . . . 1 1 . Parts Lost 26 | . . 6 . 3 17 Power 3 | . . 2 . . 1 Propulsion 10 | . . 1 . 2 7 Utility 2 | . . . . . 2 Weapon 11 | . . 3 . 1 7 Highest Loss Streak 17 | . . 6 . 1 17 To Critical Strikes . | . . . . . . Average Slot Usage (%) 90 | . 95 68 92 94 84 Engine 8 | . 14 5 8 8 5 Leg 33 | . 28 25 42 31 29 Device 4 | . . . . 9 13 Storage 20 | . 23 28 22 18 15 Energy Gun 10 | . . 1 . 26 18 Energy Cannon 3 | . . . 10 . . Ballistic Gun 7 | . 28 6 8 . . Naked Turns . | . . . . . . Heaviest Build 45 | 13 22 22 41 45 41 Greatest Support 56 | 20 20 20 52 52 56 Greatest Overweight (x) 10 | 3 1 1 1 1 10 Average Overweight (x) . | . . . . . . Largest Inventory Capacity 15 | 8 10 10 15 15 15 Average Capacity 12 | 7 8 10 13 15 15 Most Carried 15 | 1 4 4 9 15 14 Average Carried 8 | . 2 2 6 13 12 Final Capacity 15 | 8 10 10 15 15 15 Final Carried 15 | 1 4 2 9 15 6 Class Distribution -------------------- 60% | Mutant 26% | Gunner 12% | Scavenger-Gunner Dominant Class ---------------- Mutant | -10/Materials Mutant | -10/Mines Mutant | -9/Materials Gunner | -8/Materials Scavenger-Gunner | -7/Factory Resources | -11 -10 -10 -9 -8 -7 ----------- Run | Yrd Mat Min Mat Mat Fac Matter Collected 681 | 252 109 60 134 106 20 Remotely . | . . . . . . Salvage Created 1903 | . 279 95 225 819 485 Parts 88 | . 16 4 12 30 26 Haulers Intercepted 2 | . . . . 1 1 Recyclers Shooed 1 | . 1 . . . . Parts Field Recycled . | . . . . . . Retrieved Matter . | . . . . . . Parts Self-Destructed . | . . . . . . Prevented . | . . . . . . Kills | -11 -10 -10 -9 -8 -7 ------- Run | Yrd Mat Min Mat Mat Fac Combat Hostiles Destroyed 29 | . 6 2 4 11 6 Guns 22 | . 6 2 . 11 3 Cannons 4 | . . . 4 . . AOE 3 | . . . . . 3 Classes Destroyed 12 | . 3 1 3 3 2 Worker 3 | . 1 . . . 2 Builder 3 | . . . . . 3 Tunneler 1 | . . . . 1 . Hauler 2 | . . . . 1 1 Recycler 6 | . 2 . . 3 1 Operator 1 | . . . . . 1 Watcher 3 | . . . 2 1 . Swarmer 9 | . 6 . . 3 . Grunt 13 | . . 2 1 4 6 Brawler 2 | . . . 1 1 . Duelist 1 | . . . . 1 . Sentry 4 | . . . 2 2 . Best Kill Streak 7 | . 3 2 3 4 7 Combat Bots Only 4 | . 2 2 2 3 4 Max Kills in Single Turn 3 | . 1 1 1 1 3 Gunslinging 1 | . . . . . 1 Exploded 1 | . . . . . 1 Melee . | . . . . . . Uniques/NPCs Destroyed . | . . . . . . Combat | -11 -10 -10 -9 -8 -7 -------- Run | Yrd Mat Min Mat Mat Fac Hostile Shots Fired 449 | . 37 51 22 59 280 Missed 166 | . 14 12 10 18 112 Damage Taken 3327 | . 188 558 146 546 1889 Core 980 | . 31 157 10 74 708 Absorbed by Shields . | . . . . . . Core Remaining (%) 76 | 100 . 24 97 86 . Volleys Fired 124 | 1 27 10 22 40 24 Largest 3 | 1 2 2 2 3 3 Hottest 185 | 20 40 60 91 183 185 Shots Fired 286 | 1 54 19 40 111 61 Gun 256 | 1 54 19 18 111 53 Cannon 22 | . . . 22 . . Launcher 8 | . . . . . 8 Special . | . . . . . . Kinetic 88 | 1 54 15 18 . . Thermal 186 | . . . 22 111 53 Explosive 3 | . . . . . 3 Electromagnetic 9 | . . 4 . . 5 Robot Hit Streak 20 | . 5 4 3 9 20 Robot Miss Streak 8 | 1 5 2 2 8 5 Penetration Max . | . . . . . . Secondary Targets 6 | . . . . 3 3 Max Gunslinging Chain 2 | . . . . 1 2 Shots Hit Robots 146 | . 25 14 19 49 39 Core Hits 77 | . 12 6 6 23 30 Critical Kills . | . . . . . . Critical Parts Destroyed . | . . . . . . Critical Strikes 7 | . . . . 4 3 Burn 7 | . . . . 4 3 Melee Attacks . | . . . . . . Impact . | . . . . . . Slashing . | . . . . . . Piercing . | . . . . . . Sneak Attacks . | . . . . . . Combat Hostiles . | . . . . . . Follow-up Attacks . | . . . . . . Damage Inflicted 3267 | . 273 178 356 1069 1391 Guns 2248 | . 273 178 105 1060 632 Cannons 226 | . . . 226 . . Explosions 759 | . . . . . 759 Melee . | . . . . . . Ramming 34 | . . . 25 9 . Kinetic 504 | . 273 126 105 . . Thermal 2031 | . . . 226 1060 745 Explosive 394 | . . . . . 394 Electromagnetic 304 | . . 52 . . 252 Impact . | . . . . . . Slashing . | . . . . . . Piercing . | . . . . . . Highest Corruption 2 | . . . 2 . . Average Corruption 2 | . . . 2 . . Corruption Purged . | . . . . . . Corruption Blocked . | . . . . . . Effects 1 | . . . 1 . . Message Errors 1 | . . . 1 . . Overload Shots . | . . . . . . Overflow Damage 43 | . . . 11 . 32 Projectiles 11 | . . . 11 . . Explosions 32 | . . . . . 32 Melee . | . . . . . . Knockbacks . | . . . . . . Impact . | . . . . . . Kinetic . | . . . . . . Secondary . | . . . . . . Self-Inflicted Damage 28 | . . . . . 28 Shots 2 | . . . . . 2 Rammed . | . . . . . . Targets Rammed 4 | . . . 2 2 . Kicked 4 | . . . 2 2 . Crushed . | . . . . . . Highest Temperature 514 | . . 107 183 514 368 Average Temperature 127 | . . 28 41 181 137 Received Heat Transfer 1596 | . . 378 66 243 909 Effects 12 | . . . . 12 . Shutdowns 2 | . . . . 2 . Energy Bleed 3 | . . . . 3 . Interference 1 | . . . . 1 . Short Circuit 1 | . . . . 1 . Damage (minor) 1 | . . . . 1 . Damage (major) 4 | . . . . 4 . Siege Activations . | . . . . . . Robots Corrupted . | . . . . . . Combat Hostiles . | . . . . . . Parts Fried . | . . . . . . Impact Corruptions . | . . . . . . Robots Melted . | . . . . . . Combat Hostiles . | . . . . . . Parts Melted 4 | . . . . 1 3 Heat Transferred 4257 | . . . 407 2257 1593 Parts Sabotaged . | . . . . . . Parts Stolen . | . . . . . . Parts Stripped . | . . . . . . Power Chain Reactions 2 | . . . . . 2 Alert | -11 -10 -10 -9 -8 -7 ------- Run | Yrd Mat Min Mat Mat Fac Peak Influence 295 | . 237 132 214 295 259 Initial 92 | . . 92 51 14 60 Average 114 | . 158 97 97 132 106 Maximum Alert Level 1 | . 1 . 1 1 1 Low Security (%) 81 | 100 46 100 92 78 85 Level 1 18 | . 53 . 7 21 14 Level 2 . | . . . . . . Level 3 . | . . . . . . Level 4 . | . . . . . . Level 5 . | . . . . . . High Security . | . . . . . . Max Security . | . . . . . . Squads Dispatched 2 | . . . . . 2 Investigation . | . . . . . . Extermination . | . . . . . . Reinforcement 2 | . . . . . 2 Assault . | . . . . . . Garrison . | . . . . . . Intercept . | . . . . . . Searches Triggered . | . . . . . . Construction Impeded 1 | . . . . . 1 Haulers Reinforced . | . . . . . . Active Scanning Responses . | . . . . . . Cargo Convoy Interrupts . | . . . . . . Stealth | -11 -10 -10 -9 -8 -7 --------- Run | Yrd Mat Min Mat Mat Fac Distress Signals 4 | . 1 . 1 1 1 Communications Jammed . | . . . . . . Distress Signals . | . . . . . . Times Spotted 67 | . 14 7 10 15 21 Peak Tracking Total 7 | . 4 4 3 3 7 Tactical Retreats 6 | . 2 3 . . 1 Traps | -11 -10 -10 -9 -8 -7 ------- Run | Yrd Mat Min Mat Mat Fac Traps Triggered 1 | . . . 1 . . Indirectly . | . . . . . . Trap Hack Attempts . | . . . . . . Triggered . | . . . . . . Disarmed . | . . . . . . Reprogrammed . | . . . . . . Reused . | . . . . . . Traps Extracted . | . . . . . . Installed . | . . . . . . Triggered . | . . . . . . Machines | -11 -10 -10 -9 -8 -7 ---------- Run | Yrd Mat Min Mat Mat Fac Machines Disabled 3 | . . . . . 3 Max in Single Turn 2 | . . . . . 2 Machines Repaired . | . . . . . . Machines Dismantled . | . . . . . . Machines Sabotaged . | . . . . . . Overloaded Fab Kills . | . . . . . . Hacking | -11 -10 -10 -9 -8 -7 --------- Run | Yrd Mat Min Mat Mat Fac Machines Accessed 3 | . 2 . 1 . . Terminals 3 | . 2 . 1 . . Fabricators . | . . . . . . Repair Stations . | . . . . . . Recycling Units . | . . . . . . Scanalyzers . | . . . . . . Garrison Access . | . . . . . . Total Hacks 7 | . 5 . 2 . . Successful 4 | . 2 . 2 . . Failed 3 | . 3 . . . . Catastrophic . | . . . . . . Database Lockouts . | . . . . . . Manual . | . . . . . . Terminals 7 | . 5 . 2 . . Fabricators . | . . . . . . Repair Stations . | . . . . . . Recycling Units . | . . . . . . Scanalyzers . | . . . . . . Garrison Access . | . . . . . . Terminal Hacks 4 | . 2 . 2 . . Emergency Access Points 1 | . 1 . . . . Dispatch Records 1 | . . . 1 . . Patrol Status 1 | . 1 . . . . Assault Status 1 | . . . 1 . . Fabricator Hacks . | . . . . . . Repair Station Hacks . | . . . . . . Recycling Unit Hacks . | . . . . . . Scanalyzer . | . . . . . . Garrison Access Hacks . | . . . . . . Unauthorized Hacks . | . . . . . . Terminals . | . . . . . . Fabricators . | . . . . . . Repair Stations . | . . . . . . Recycling Units . | . . . . . . Scanalyzers . | . . . . . . Garrison Access . | . . . . . . Data Cores Recovered . | . . . . . . Used . | . . . . . . Hacking Detections 2 | . 2 . . . . Full Trace Events . | . . . . . . Feedback Events . | . . . . . . Feedback Blocked . | . . . . . . Robot Schematics Acquired . | . . . . . . Robots Built . | . . . . . . Authchips . | . . . . . . Time . | . . . . . . Total Robot Build Rating . | . . . . . . Part Schematics Acquired . | . . . . . . Parts Built . | . . . . . . Authchips . | . . . . . . Time . | . . . . . . Total Part Build Rating . | . . . . . . Parts Repaired . | . . . . . . Time . | . . . . . . Parts Recycled . | . . . . . . Recycled Matter . | . . . . . . Retrieved Matter . | . . . . . . Retrieved Components . | . . . . . . Parts Scanalyzed . | . . . . . . Part Schematics Acquired . | . . . . . . Parts Damaged . | . . . . . . Bothacking | -11 -10 -10 -9 -8 -7 ------------ Run | Yrd Mat Min Mat Mat Fac Used RIF Installer . | . . . . . . Robots Hacked . | . . . . . . Non-combat . | . . . . . . Combat . | . . . . . . Robot Hacks Applied . | . . . . . . Relay Couplers Released . | . . . . . . Fabnet Peak Effective % . | . . . . . . Robots Rewired . | . . . . . . Allies Hacked . | . . . . . . Hacks Repelled . | . . . . . . Allies | -11 -10 -10 -9 -8 -7 -------- Run | Yrd Mat Min Mat Mat Fac Total Allies . | . . . . . . Largest Group . | . . . . . . Highest-Rated Group . | . . . . . . Highest-Rated Ally . | . . . . . . Total Orders . | . . . . . . Ally Attacks . | . . . . . . Total Damage . | . . . . . . Kills . | . . . . . . Allies Corrupted . | . . . . . . Allies Melted . | . . . . . . Intel | -11 -10 -10 -9 -8 -7 ------- Run | Yrd Mat Min Mat Mat Fac Robot Analysis Total . | . . . . . . Derelict Logs Recovered . | . . . . . . Drone Launches . | . . . . . . Drone Recoveries . | . . . . . . Exploration | -11 -10 -10 -9 -8 -7 ------------- Run | Yrd Mat Min Mat Mat Fac Turns Passed 1985 | 62 304 152 628 529 310 Spaces Moved 1073 | 43 133 98 402 226 171 Core 10 | 7 . . . . 3 Treads . | . . . . . . Legs 1063 | 36 133 98 402 226 168 Wheels . | . . . . . . Hover . | . . . . . . Flight . | . . . . . . Fastest Speed 50 | 50 120 120 120 120 120 Average Speed 136 | 117 157 125 124 155 135 Slowest Speed 550 | 200 190 190 190 190 550 Overloaded Moves . | . . . . . . Propulsion Burnouts . | . . . . . . Robots Hopped . | . . . . . . Cave-ins Triggered . | . . . . . . Exploration Rate (%) 18 | 3 23 26 33 19 7 Regions Visited 5 Branch Regions 1 Pre-discovered Areas . | . . . . . . Known Exits Taken . | . . . . . . Unknown Exits Taken 5 | 1 1 1 1 1 . Scrap Searched . | . . . . . . Spaces Dug . | . . . . . . Terrain Destroyed 17 | . . . . . 17 Melee . | . . . . . . Projectile . | . . . . . . AOE 17 | . . . . . 17 Terrain Rammed . | . . . . . . Walls Destroyed . | . . . . . . Machines Disabled . | . . . . . . Actions | -11 -10 -10 -9 -8 -7 --------- Run | Yrd Mat Min Mat Mat Fac Total 1340 | 50 179 110 485 312 204 Wait 86 | . 16 . 45 25 . Move 1068 | 42 132 97 401 225 171 Hop . | . . . . . . Pick Up 14 | 1 2 . 6 5 . Fast Attach 20 | 6 1 1 5 7 . Attach 13 | . . 2 . 2 9 Detach 2 | . . . . 2 . Swap 6 | . 1 . 3 2 . Drop 3 | . . . 1 2 . Fire 124 | 1 27 10 22 40 24 Melee . | . . . . . . Ram . | . . . . . . Kick 4 | . . . 2 2 . Crush . | . . . . . . Escape Stasis . | . . . . . . Rewire . | . . . . . . Trap . | . . . . . . Miscellaneous . | . . . . . . Route ------- -11/Scrapyard -10/Materials -10/Mines -9/Materials -8/Materials -7/Factory History --------- Turn | Location | Event 8 | -11/Scrapyard | Discovered new exit (range 16) 63 | -11/Scrapyard | Entered Materials 250 | -10/Materials | Discovered new exit (range 13) 314 | -10/Materials | Build established: Mutant 367 | -10/Materials | Entered Mines 381 | -10/Mines | Discovered new exit (range 9) 398 | -10/Mines | Core integrity fell below 50% 463 | -10/Mines | Lost 6 parts (2p1n3w) 519 | -10/Mines | Entered Materials 519 | -9/Materials | Evolved 2 slots: Propulsion x2 886 | -9/Materials | Discovered new exit (range 15) 1147 | -9/Materials | Entered another Materials area 1147 | -8/Materials | Evolved 2 slots: Utility x1, Weapon x1 1417 | -8/Materials | Discovered new exit (range 15) 1459 | -8/Materials | Build established: Gunner 1676 | -8/Materials | Entered Factory 1676 | -7/Factory | Evolved 2 slots: Propulsion x1, Utility x1 1964 | -7/Factory | Core integrity fell below 50% 1979 | -7/Factory | Core integrity fell below 20% 1986 | -7/Factory | Destroyed by G-47 Trooper with Particle Gun Last Messages --------------- U-05 Engineer lays Concrete. G-47 Trooper destroyed. Destroyed Welding Torch. O-16 Technician destroyed. U-05 Engineer lays Concrete. Destroyed Welding Torch. U-05 Engineer destroyed. Destroyed Terrain Scanner. U-05 Engineer destroyed. Imp. Heat Sink destroyed. U-05 Engineer lays Concrete. Ion Cannon destroyed. Mni. Grenade Launcher destroyed. U-05 Engineer lays Concrete. R-06 Scavenger collects Welding Torch. U-05 Engineer lays Concrete. Aluminum Leg destroyed. U-05 Engineer lays Concrete. Aluminum Leg destroyed. Critical hit (Burn: +37). Map ----- +----------------------------------------------------+ | ?????????????????????????????????????????????????? | | ?????????????????????????????????????????????????? | | ?????????????????????????????????????????????????? | | ?????????????????????????????????????????????????? | | ?????????????????????????????????????????????????? | | ?????????????????????????????????????????????????? | | ?????????????????????????????????????????????????? | | ?????????????????????????????????????????????????? | | ?????????????????????????????????????????????????? | | ?????????????????????????????????????????????????? | | ?????????????????????????????????????????????????? | | ?????????????????????????????????????????????????? | | ?????????????????????????????????????????????????? | | ?????????????????????????????????????????????????? | | ?????????????????????????????????????????????????? | | ??????????##?????????????????????????????????????? | | ??????????# ####?????????????????????????????????? | | ?????????? ?????????????????????????????????? | | ??????????" ?????????????????????????????????? | | ?????????#"" #????????????????????????????????? | | ?????????#"" #????????????????????????????????? | | ?????????#"" =|#????????????????????????????????? | | ?????????#"" =|#????????????????????????????????? | | ?????????#"T #????????????????????????????????? | | ?????????#"" ##########+#+#???????????????????? | | ?????????#"" # @ #######?????????????? | | ?????????#"" ?????????? | | ?????????#"" ????????? | | ##########" % Y ?????????? | | # # =%! r ### #### ##?????????? | | # "# * ![ = #######???#???????????????? | | # T########%* ?????????????????????????? | | # "# g== #????????????????????????? | | ? # g Y #????????????????????????? | | ?? """"" # """ " #????????????????????????? | | ?? """"" + "R ""g u #????????????????????????? | | ?? """ # """ "" #????????????????????????? | | # # ###????????????????????????? | | ########## #??????????????????????????? | | #??????????????????????????? | | = #??????????????????????????? | | %%! #??????????????????????????? | | %%! #??????????????????????????? | | "" """ """ """ !|="#??????????????????????????? | | "" """ """ """ %%= #??????????????????????????? | | "" """ """ """ = %=#??????????????????????????? | | "" "" "" ??????????????????????????? | | "" "" "" ?????????????????????????? | | ????????????????????????? | | ?????????????????????????? | +----------------------------------------------------+ Best States ------------- Heat Dissipation 58 Energy Generation 14 Energy Capacity 525 Matter Stores 300 Matter Capacity 300 Sight Range 16 Terrain Scan Density 10 Evasion (%) 55 Item Schematics ----------------- None Robot Schematics ------------------ None Fabricated ------------ Nothing Alien Tech Used ----------------- None Achievements -------------- None Challenges ------------ None Game ------ Seed StormReactionThrower Manual? 0 Play Time 00:19:26 Cumulative 9.8 hours Start 2024.07.13 @ 12:30:00 End 2024.07.13 @ 12:48:17 Sessions 1 Manual Loads 0 Difficulty Rogue Special Mode None Game No. 18 Rogue 18 Adventurer 0 Explorer 0 Win Type - Total 0 Types 0/0/0/0/0/0/0/0/0 Lore% 15 Gallery% 15 Achievement% 14 Wizard Run 0 Options --------- Layout 1 ASCII 0 Keyboard 0 Movement Mouse Keybinds 0 Fullscreen 1 Font 24/Terminus Map View 50x35 Zoom Use 0% Tactical HUD 0 Map Filters NONE Filters NONE Steam 1 RUN: 95a7eb38-6056-41cc-aa14-787fc12ad18a